[Event "Charlotte CC Fall GM-ALTO 2024"]
[Site "Charlotte"]
[Date "2024.11.26"]
[Round "8.4"]
[White "Williams, Justus"]
[Black "Stefanov, Emil"]
[Result "0-1"]
[ECO "A09"]
[WhiteElo "2355"]
[BlackElo "2362"]
[Annotator "RC"]
[PlyCount "84"]
[EventDate "2024.11.22"]
[EventType "tourn"]
[EventCountry "USA"]
[SourceTitle "playchess.com"]
[Source "ChessBase"]
[SourceQuality "1"]
[TimeControl "5400+30"]

1. Nf3 {[%emt 0:05:38]} d5 {[%emt 0:02:38]} 2. g3 {[%emt 0:00:26]} Nf6 {[%emt 0:00:32]} 3. c4 {[%emt 0:02:54]} d4 {[%emt 0:04:00]} 4. Bg2 {[%emt 0:01:01]} c5 {[%emt 0:01:30]} 5. e3 {[%emt 0:01:07]} Nc6 {[%emt 0:00:24]} 6. exd4 {[%emt 0:00:48]} cxd4 {[%emt 0:00:06]} 7. d3 {[%emt 0:00:48]} Nd7 {[%emt 0:02:34]} 8. Nbd2 {[%emt 0:05:13]} e5 {[%emt 0:00:21]} 9. O-O {[%emt 0:00:40]} Be7 {[%emt 0:00:05]} 10. Ne1 {[%emt 0:01:33]} O-O {[%emt 0:00:16]} 11. Nc2 {[%emt 0:05:34]} a5 {[%emt 0:00:25]} 12. Re1 {[%emt 0:01:19]} f5 {[%emt 0:11:11]} 13. Nf3 {[%emt 0:02:47]} Bf6 {[%emt 0:00:44]} 14. h4 {[%emt 0:07:56]} Nc5 {[%emt 0:07:56]} 15. Ng5 {[%emt 0:01:45]} Bxg5 {[%emt 0:00:47]} 16. Bxg5 {[%emt 0:00:59]} Qd6 {[%emt 0:00:54]} 17. Na3 {[%emt 0:00:48]} Rf7 {[%emt 0:23:06]} 18. Nb5 {[%emt 0:04:50]} Qf8 {[%emt 0:00:06]} 19. Bd5 {[%emt 0:10:02]} Be6 {[%emt 0:00:34]} 20. a3 {[%emt 0:05:15]} h6 {[%emt 0:04:51]} 21. Bc1 {[%emt 0:11:55]} Rd8 {[%emt 0:08:34]} 22. Bxe6 {[%emt 0:02:06]} Nxe6 {[%emt 0:03:13]} 23. f4 {[%emt 0:00:14]} e4 {[%emt 0:00:03]} 24. dxe4 {[%emt 0:00:28]} fxe4 {[%emt 0:00:08]} 25. Rxe4 {[%emt 0:00:22]} Nc5 {[%emt 0:00:07]} 26. Re1 {[%emt 0:00:39]} a4 {[%emt 0:03:32]} 27. Bd2 {[%emt 0:02:23]} Nb3 {[%emt 0:00:10]} 28. Qe2 {[%emt 0:06:18]} d3 {[%emt 0:02:25]} 29. Qf2 {[%emt 0:00:31]} Nxa1 {[%emt 0:07:12]} 30. Rxa1 {[%emt 0:00:03]} Re7 {[%emt 0:00:41]} 31. Be3 {[%emt 0:04:30]} Qe8 {[%emt 0:01:28]} 32. Re1 {[%emt 0:02:15]} Nd4 {[%emt 0:04:43]} 33. Nc7 {[%emt 0:00:57]} Ne2+ {[%emt 0:00:45]} 34. Qxe2 {[%emt 0:00:56]} Rxc7 {[%emt 0:05:03]} 35. Qd2 {[%emt 0:00:37]} Qg6 {[%emt 0:00:17]} 36. Bf2 {[%emt 0:01:24]} Rxc4 {[%emt 0:00:06]} 37. Qa5 {[%emt 0:00:15]} b6 {[%emt 0:02:00]} 38. Qd2 {[%emt 0:04:58]} Rc2 {[%emt 0:00:19]} 39. Qe3 {[%emt 0:00:01]} d2 {[%emt 0:00:42]} 40. Rd1 {[%emt 0:00:13]} Qg4 {[%emt 0:01:16]} 41. Kh2 {[%emt 0:00:14]} Qxd1 {[%emt 0:00:21]} 42. Qe7 {[%emt 0:00:13]} Qh1+ {[%emt 0:00:37]} 0-1

[Event "Charlotte CC Fall GM-ALTO 2024"]
[Site "Charlotte"]
[Date "2024.11.26"]
[Round "8.5"]
[White "Mitrabha, Guha"]
[Black "Padmini, Rout"]
[Result "1-0"]
[ECO "A16"]
[WhiteElo "2511"]
[BlackElo "2334"]
[Annotator "TA"]
[PlyCount "109"]
[EventDate "2024.11.22"]
[EventType "tourn"]
[EventCountry "USA"]
[SourceTitle "playchess.com"]
[Source "ChessBase"]
[SourceQuality "1"]
[TimeControl "5400+30"]

{[%evp 28,109,0,0,0,0,4,0,9,-2,0,10,2,13,53,13,15,0,13,12,25,-16,16,27,31,39,49,62,60,34,79,88,127,126,129,111,168,83,72,66,66,66,71,41,45,37,50,42,64,39,47,35,52,-45,15,0,137,84,121,0,110,0,190,186,147,165,220,214,232,237,807,770,809,806,1147,1064,29989,29990,29991,29992,29996,29997,29997,29998]} 1. Nf3 {[%emt 0:11:06]} Nf6 {[%emt 0:00:12]} 2. c4 {[%emt 0:00:07]} g6 {[%emt 0:01:56]} 3. Nc3 {[%emt 0:00:29]} Bg7 {[%emt 0:00:07]} 4. g3 {[%emt 0:00:11]} d5 {[%emt 0:01:11]} 5. cxd5 {[%emt 0:00:40]} Nxd5 {[%emt 0:00:03]} 6. Bg2 {[%emt 0:00:09]} Nb6 {[%emt 0:00:28]} 7. d3 {[%emt 0:01:03]} Nc6 {[%emt 0:00:51]} 8. Be3 {[%emt 0:01:00]} O-O {[%emt 0:01:28] A16: English Opening: 1...Nf6 with ...d5.} 9. Rc1 {[%emt 0:00:17]} e5 {[%emt 0:04:37]} 10. Qd2 {[%emt 0:02:19]} Nd4 {[%emt 0:02:59]} 11. Bh6 {[%emt 0:01:07]} Re8 {[%emt 0:04:15]} 12. h4 {[%emt 0:03:24]} Bxh6 {[%emt 0:07:38]} 13. Qxh6 {[%emt 0:00:05]} Nf5 {[%emt 0:00:08]} 14. Qg5 $146 {[%emt 0:06:07]} ({Predecessor:} 14. Qd2 h5 15. Qg5 Qxg5 16. hxg5 Nd6 17. Nd2 c6 18. Nde4 Nxe4 19. Nxe4 Re7 20. Kd2 {1-0 Talla,V (2367)-Dvorak,T (2331) CZE-chT 0304 2003 (11)}) 14... f6 {[%emt 0:04:04]} 15. Qd2 {[%emt 0:00:03]} c6 {[%emt 0:00:29]} 16. Ne4 {[%emt 0:03:15]} h5 {[%emt 0:09:16]} 17. Nc5 {[%emt 0:02:10]} Kg7 {[%emt 0:04:37]} 18. e3 {[%emt 0:00:49]} a5 {[%emt 0:02:32]} 19. O-O {[%emt 0:00:19]} Nd6 {[%emt 0:03:25]} 20. Qc2 {[%emt 0:02:30]} Be6 {[%emt 0:09:44]} 21. Rfd1 {[%emt 0:07:44]} Bg4 {[%emt 0:06:19]} 22. Rd2 {[%emt 0:01:34]} Qe7 {[%emt 0:02:14]} 23. Nh2 {[%emt 0:00:48]} Bc8 {[%emt 0:01:56]} 24. Nf3 {[%emt 0:02:00]} Nd7 {[%emt 0:02:43]} 25. Na4 {[%emt 0:00:19]} b5 {[%emt 0:07:06]} 26. Nc5 {[%emt 0:01:35]} (26. Qxc6 $2 Bb7 27. Qc2 Rec8 $19 (27... bxa4 $2 28. Qxa4 Nb6 29. Qb3 $19)) 26... Nxc5 {[%emt 0:03:02]} 27. Qxc5 {[%emt 0:00:02]} Be6 {[%emt 0:00:58]} 28. a3 {[%emt 0:00:35]} (28. Qxc6 $2 Rac8 (28... Bxa2 29. Qc7 $11) 29. Rdc2 Rxc6 $19) 28... Rac8 {[%emt 0:02:27]} 29. Rdc2 $1 {[%emt 0:00:18]} a4 {[%emt 0:08:51]} 30. Nd2 {[%emt 0:00:33]} Bd7 {[%emt 0:00:30]} 31. Qb4 {[%emt 0:00:45]} Rc7 {[%emt 0:02:31]} (31... Nf5 $16 {was called for.}) 32. Rc3 {[%emt 0:01:52]} (32. Bxc6 $18 {is more deadly.} Bxc6 33. Rxc6) 32... Rec8 $16 {[%emt 0:01:56]} 33. Ne4 {[%emt 0:00:12]} Nf5 {[%emt 0:00:11]} 34. Nc5 {[%emt 0:00:02]} Be8 {[%emt 0:00:28]} 35. Kf1 {[%emt 0:02:32]} Ra7 {[%emt 0:01:10]} 36. R3c2 {[%emt 0:05:26]} Rd8 {[%emt 0:00:44]} 37. Kg1 {[%emt 0:00:44]} Qd6 {[%emt 0:03:42]} 38. Qd2 {[%emt 0:00:43]} Ne7 {[%emt 0:00:58]} 39. Rf1 {[%emt 0:02:02]} Bf7 {[%emt 0:01:21]} 40. f4 {[%emt 0:00:26]} (40. Rd1 $14) 40... exf4 {[%emt 0:00:37]} (40... Nf5 $15) 41. Rxf4 $11 {[%emt 0:00:53]} Qe5 {[%emt 0:00:24]} (41... Nd5 $11 {keeps the balance.}) 42. Qf2 {[%emt 0:00:28]} ({White should play} 42. d4 Qb8 43. Qf2) 42... Nf5 {[%emt 0:00:33] [#]} 43. Be4 {[%emt 0:00:28]} (43. d4 $1 $16 {[%cal Rd4e5]} Qe8 (43... Qxe3 $2 {loses.} 44. Rxf5 Qxd4 45. Rf4 $18) 44. Ne4) 43... Nd6 {[%emt 0:00:18]} (43... Nh6 $1 $11 {remains equal.}) 44. Bg2 {[%emt 0:04:17]} ({Better is} 44. Bxc6 $16 {Threatens to win with d4.} Rc8 45. Nd7) 44... Bd5 $2 {[%emt 0:00:39] [#]} (44... Nf5 $11 {and Black has nothing to worry.}) 45. e4 $1 $18 {[%emt 0:01:22]} Bf7 {[%emt 0:00:16]} 46. Ne6+ {[%emt 0:01:40]} Qxe6 {[%emt 0:00:11]} (46... Bxe6 $142 47. Qxa7+ (47. d4 Nxe4 48. Rxe4 Qd5 $16) 47... Nf7) 47. Qxa7 $18 {[%emt 0:00:02]} Nc8 {[%emt 0:00:07]} 48. Qe3 {[%emt 0:00:53]} Qb3 $2 {[%emt 0:00:05]} (48... Ne7 49. Rf3 Qd7) 49. Rxc6 $18 {[%emt 0:01:54]} Rxd3 {[%emt 0:00:10]} 50. Qf2 {[%emt 0:00:01]} Nd6 {[%emt 0:00:48]} 51. Rxf6 {[%emt 0:01:01]} Bc4 {[%emt 0:01:37]} 52. e5 {[%emt 0:00:29]} Qd1+ {[%emt 0:00:26]} 53. Kh2 {[%emt 0:00:15]} Rd2 {[%emt 0:00:53]} 54. Rc7+ {[%emt 0:00:23]} Nf7 {[%emt 0:00:17]} 55. Rfxf7+ {[%emt 0:00:06]} 1-0